[Event "Early-Titled-Tuesday-Blitz-May-14-2024"]
[Site "Chess.com"]
[Date "2024.05.14"]
[Round "1"]
[White "GrotBchess"]
[Black "KuzubovYuriy"]
[Result "0-1"]
[WhiteElo "2528"]
[BlackElo "2947"]
[TimeControl "180+1"]
[EndTime "8:07:38 PDT"]
[Termination "KuzubovYuriy won by resignation"]

1. e4 {[%clk 0:03:00.9]} 1... c5 {[%clk 0:02:56.4]} 2. Nf3 {[%clk 0:03:00.7]}
2... Nc6 {[%clk 0:02:56.7]} 3. d4 {[%clk 0:02:59]} 3... cxd4 {[%clk 0:02:57.6]}
4. Nxd4 {[%clk 0:02:59.3]} 4... g6 {[%clk 0:02:58.3]} 5. c4 {[%clk 0:02:58.9]}
5... Nf6 {[%clk 0:02:58.8]} 6. Nc3 {[%clk 0:02:57.8]} 6... d6 {[%clk 0:02:58.9]}
7. Be2 {[%clk 0:02:56.1]} 7... Bg7 {[%clk 0:02:58]} 8. Be3 {[%clk 0:02:56.1]}
8... O-O {[%clk 0:02:54]} 9. O-O {[%clk 0:02:56.1]} 9... Nxd4 {[%clk 0:02:53.7]}
10. Bxd4 {[%clk 0:02:56.3]} 10... Bd7 {[%clk 0:02:54]} 11. Qd2 {[%clk
0:02:53.3]} 11... Bc6 {[%clk 0:02:52.7]} 12. Bd3 {[%clk 0:02:53.4]} 12... a5
{[%clk 0:02:49.9]} 13. Rae1 {[%clk 0:02:52.8]} 13... a4 {[%clk 0:02:48.1]} 14.
Re3 {[%clk 0:02:45.7]} 14... Ng4 {[%clk 0:02:38]} 15. Rg3 {[%clk 0:02:10.8]}
15... Bxd4 {[%clk 0:02:37.5]} 16. Rxg4 {[%clk 0:02:10.6]} 16... e6 {[%clk
0:02:33.1]} 17. Rg3 {[%clk 0:02:06.4]} 17... Qf6 {[%clk 0:02:26.5]} 18. Rf3
{[%clk 0:01:57.8]} 18... Qe5 {[%clk 0:02:22.5]} 19. Rh3 {[%clk 0:01:50.7]} 19...
a3 {[%clk 0:02:19.7]} 20. Ne2 {[%clk 0:01:25.6]} 20... Bxb2 {[%clk 0:02:05.2]}
21. f4 {[%clk 0:01:14.7]} 21... Qa5 {[%clk 0:02:00.2]} 22. Qc2 {[%clk
0:01:01.4]} 22... b5 {[%clk 0:01:33.9]} 23. f5 {[%clk 0:00:41.5]} 23... bxc4
{[%clk 0:01:30.5]} 24. Bxc4 {[%clk 0:00:41]} 24... Qc5+ {[%clk 0:01:21.5]} 25.
Kh1 {[%clk 0:00:39.7]} 25... d5 {[%clk 0:01:21]} 26. f6 {[%clk 0:00:19.3]} 26...
dxc4 {[%clk 0:01:10.4]} 27. Qd2 {[%clk 0:00:19.1]} 27... h5 {[%clk 0:00:39.1]}
28. Qh6 {[%clk 0:00:17.2]} 28... Bxf6 {[%clk 0:00:38.8]} 29. Rxf6 {[%clk
0:00:17.3]} 29... Qe5 {[%clk 0:00:31.6]} 30. Rf1 {[%clk 0:00:11.4]} 30... Rad8
{[%clk 0:00:18.2]} 31. Nf4 {[%clk 0:00:10.8]} 31... Qg7 {[%clk 0:00:15.2]} 32.
Qg5 {[%clk 0:00:10.1]} 32... Bxe4 {[%clk 0:00:15.3]} 33. Rg3 {[%clk 0:00:09.7]}
33... Rd5 {[%clk 0:00:07.1]} 34. Qe7 {[%clk 0:00:06.8]} 34... Rf5 {[%clk
0:00:05.6]} 35. Qd6 {[%clk 0:00:05.3]} 35... c3 {[%clk 0:00:05.3]} 36. Qd1
{[%clk 0:00:03.6]} 36... c2 {[%clk 0:00:05.5]} 37. Qc1 {[%clk 0:00:03.9]} 37...
h4 {[%clk 0:00:05.7]} 38. Rg4 {[%clk 0:00:03.5]} 38... h3 {[%clk 0:00:05]} 39.
Nxh3 {[%clk 0:00:02.9]} 39... Rxf1+ {[%clk 0:00:04.9]} 40. Qxf1 {[%clk
0:00:03.8]} 40... Rc8 {[%clk 0:00:04.9]} 41. Qc1 {[%clk 0:00:04.1]} 41... Qb2
{[%clk 0:00:05.1]} 42. Qg1 {[%clk 0:00:01.2]} 42... c1=Q {[%clk 0:00:05.5]} 0-1

[Event "Early-Titled-Tuesday-Blitz-May-14-2024"]
[Site "Chess.com"]
[Date "2024.05.14"]
[Round "1"]
[White "Kombinator01"]
[Black "vaishali2001"]
[Result "0-1"]
[WhiteElo "2377"]
[BlackElo "2690"]
[TimeControl "180+1"]
[EndTime "8:07:39 PDT"]
[Termination "vaishali2001 won on time"]

1. d4 {[%clk 0:02:58.4]} 1... Nf6 {[%clk 0:02:59.6]} 2. Bf4 {[%clk 0:02:54.2]}
2... d5 {[%clk 0:02:57.2]} 3. e3 {[%clk 0:02:53.8]} 3... Bf5 {[%clk 0:02:55.1]}
4. Nd2 {[%clk 0:02:51.6]} 4... e6 {[%clk 0:02:55]} 5. Ngf3 {[%clk 0:02:48.3]}
5... Bd6 {[%clk 0:02:55.1]} 6. Ne5 {[%clk 0:02:48.2]} 6... Nbd7 {[%clk
0:02:52.4]} 7. Bb5 {[%clk 0:02:36.7]} 7... c6 {[%clk 0:02:45.6]} 8. Bd3 {[%clk
0:02:30.3]} 8... Bxd3 {[%clk 0:02:39.4]} 9. cxd3 {[%clk 0:02:26.8]} 9... Qc7
{[%clk 0:02:39.8]} 10. Ndf3 {[%clk 0:02:23.6]} 10... O-O {[%clk 0:02:39.2]} 11.
O-O {[%clk 0:02:22.3]} 11... Nh5 {[%clk 0:02:35.8]} 12. Nxd7 {[%clk 0:02:12.1]}
12... Qxd7 {[%clk 0:02:28.5]} 13. Bxd6 {[%clk 0:02:06.8]} 13... Qxd6 {[%clk
0:02:29.4]} 14. e4 {[%clk 0:02:03.7]} 14... dxe4 {[%clk 0:02:18.6]} 15. dxe4
{[%clk 0:02:02.5]} 15... Nf4 {[%clk 0:02:08.1]} 16. Qd2 {[%clk 0:01:57.1]} 16...
Ng6 {[%clk 0:02:06.9]} 17. Rfd1 {[%clk 0:01:53.4]} 17... Rad8 {[%clk 0:02:01.7]}
18. g3 {[%clk 0:01:40.4]} 18... Qc7 {[%clk 0:01:43.1]} 19. Qe3 {[%clk
0:01:36.1]} 19... a6 {[%clk 0:01:40.7]} 20. Rac1 {[%clk 0:01:35]} 20... Qb6
{[%clk 0:01:32.7]} 21. b3 {[%clk 0:01:32]} 21... Rfe8 {[%clk 0:01:29.2]} 22. e5
{[%clk 0:01:15]} 22... Rd5 {[%clk 0:01:25.7]} 23. h4 {[%clk 0:01:10.9]} 23... h6
{[%clk 0:01:25.3]} 24. Kg2 {[%clk 0:01:06.2]} 24... Red8 {[%clk 0:01:19.1]} 25.
g4 {[%clk 0:00:54.9]} 25... Qb4 {[%clk 0:01:12.3]} 26. g5 {[%clk 0:00:42.4]}
26... h5 {[%clk 0:01:08.1]} 27. Kg3 {[%clk 0:00:25.5]} 27... Ne7 {[%clk
0:01:02.6]} 28. Kg2 {[%clk 0:00:20.5]} 28... Nf5 {[%clk 0:01:02.1]} 29. Qf4
{[%clk 0:00:08.2]} 29... g6 {[%clk 0:00:59.5]} 30. Rc4 {[%clk 0:00:07.9]} 30...
Qa3 {[%clk 0:00:58.9]} 31. Rd2 {[%clk 0:00:08.1]} 31... R8d7 {[%clk 0:00:53.6]}
32. Ra4 {[%clk 0:00:08.1]} 32... Qc1 {[%clk 0:00:52.7]} 33. Rc4 {[%clk
0:00:06.5]} 33... Qa3 {[%clk 0:00:51.7]} 34. Ra4 {[%clk 0:00:06.7]} 34... Qf8
{[%clk 0:00:51]} 35. Rc4 {[%clk 0:00:07.3]} 35... Qd8 {[%clk 0:00:50.6]} 36. a3
{[%clk 0:00:06.7]} 36... a5 {[%clk 0:00:39.5]} 37. b4 {[%clk 0:00:06.7]} 37...
axb4 {[%clk 0:00:39]} 38. axb4 {[%clk 0:00:07.6]} 38... Qb6 {[%clk 0:00:36.6]}
39. Ra2 {[%clk 0:00:06.8]} 39... Kg7 {[%clk 0:00:36.7]} 40. Ra8 {[%clk
0:00:06.5]} 40... Rd8 {[%clk 0:00:35.5]} 41. Rxd8 {[%clk 0:00:04.5]} 41... Rxd8
{[%clk 0:00:35]} 42. Qe4 {[%clk 0:00:03.1]} 42... Qb5 {[%clk 0:00:33]} 43. Qd3
{[%clk 0:00:00.2]} 43... Ra8 {[%clk 0:00:28.4]} 0-1

[Event "Early-Titled-Tuesday-Blitz-May-14-2024"]
[Site "Chess.com"]
[Date "2024.05.14"]
[Round "1"]
[White "laurenzchess"]
[Black "Seochesspie"]
[Result "0-1"]
[WhiteElo "2501"]
[BlackElo "2865"]
[TimeControl "180+1"]
[EndTime "8:07:41 PDT"]
[Termination "Seochesspie won on time"]

1. d4 {[%clk 0:02:59]} 1... d5 {[%clk 0:03:00.1]} 2. c4 {[%clk 0:02:58.3]} 2...
c6 {[%clk 0:03:00.5]} 3. Nf3 {[%clk 0:02:58.1]} 3... Nf6 {[%clk 0:03:00.5]} 4.
Nc3 {[%clk 0:02:55]} 4... e6 {[%clk 0:02:59.7]} 5. e3 {[%clk 0:02:48.3]} 5...
Nbd7 {[%clk 0:02:59.2]} 6. Bd3 {[%clk 0:02:44.5]} 6... dxc4 {[%clk 0:02:56.9]}
7. Bxc4 {[%clk 0:02:44.9]} 7... b5 {[%clk 0:02:57.4]} 8. Bd3 {[%clk 0:02:45]}
8... a6 {[%clk 0:02:49.9]} 9. O-O {[%clk 0:02:35.6]} 9... c5 {[%clk 0:02:49.8]}
10. a4 {[%clk 0:02:28.3]} 10... b4 {[%clk 0:02:48.5]} 11. Ne4 {[%clk 0:02:28]}
11... Bb7 {[%clk 0:02:48.4]} 12. Nxf6+ {[%clk 0:02:26.6]} 12... Nxf6 {[%clk
0:02:48.4]} 13. dxc5 {[%clk 0:02:22.8]} 13... Bxc5 {[%clk 0:02:48.2]} 14. b3
{[%clk 0:02:21.4]} 14... O-O {[%clk 0:02:47.7]} 15. Bb2 {[%clk 0:02:13.4]} 15...
Rc8 {[%clk 0:02:38.8]} 16. a5 {[%clk 0:02:07.1]} 16... Bd6 {[%clk 0:02:37.2]}
17. Qe2 {[%clk 0:02:05]} 17... Ra8 {[%clk 0:02:12.3]} 18. e4 {[%clk 0:01:56]}
18... Nd7 {[%clk 0:02:03.6]} 19. Rfd1 {[%clk 0:01:51.4]} 19... Qe7 {[%clk
0:02:02.4]} 20. Bc4 {[%clk 0:01:24.9]} 20... Nc5 {[%clk 0:01:54.9]} 21. e5
{[%clk 0:01:22.8]} 21... Bc7 {[%clk 0:01:55.5]} 22. Rd4 {[%clk 0:01:16.8]} 22...
Rad8 {[%clk 0:01:48.4]} 23. Rg4 {[%clk 0:01:16.8]} 23... Kh8 {[%clk 0:01:35.1]}
24. Nd4 {[%clk 0:01:14.3]} 24... Bd5 {[%clk 0:01:20.5]} 25. Bxa6 {[%clk
0:01:04]} 25... Nxa6 {[%clk 0:01:11.8]} 26. Qxa6 {[%clk 0:01:04.3]} 26... Ra8
{[%clk 0:01:12]} 27. Qe2 {[%clk 0:00:43.9]} 27... Rxa5 {[%clk 0:01:09.3]} 28.
Rc1 {[%clk 0:00:43.5]} 28... Ra2 {[%clk 0:01:06]} 29. Rc2 {[%clk 0:00:39.4]}
29... Bb6 {[%clk 0:01:04.1]} 30. h4 {[%clk 0:00:35.9]} 30... Qa7 {[%clk
0:00:59.3]} 31. Qd3 {[%clk 0:00:27.6]} 31... Qa6 {[%clk 0:00:46.2]} 32. Qg3
{[%clk 0:00:24.5]} 32... Rxb2 {[%clk 0:00:40.9]} 33. Rxg7 {[%clk 0:00:17.2]}
33... Rxc2 {[%clk 0:00:29]} 34. Nxc2 {[%clk 0:00:16.6]} 34... Qe2 {[%clk
0:00:27.4]} 35. Ne3 {[%clk 0:00:08.8]} 35... Bxe3 {[%clk 0:00:27.1]} 36. fxe3
{[%clk 0:00:09.2]} 36... Qh5 {[%clk 0:00:15.4]} 37. Rg5 {[%clk 0:00:07]} 37...
Qh6 {[%clk 0:00:14.9]} 38. Qf4 {[%clk 0:00:03.6]} 38... Bxb3 {[%clk 0:00:08.9]}
39. Qxb4 {[%clk 0:00:03]} 39... Bd5 {[%clk 0:00:05.8]} 40. Kh2 {[%clk
0:00:02.1]} 40... Rg8 {[%clk 0:00:05.6]} 41. Qf4 {[%clk 0:00:01.8]} 41... Rxg5
{[%clk 0:00:05.7]} 0-1

[Event "Early-Titled-Tuesday-Blitz-May-14-2024"]
[Site "Chess.com"]
[Date "2024.05.14"]
[Round "1"]
[White "Hope_6"]
[Black "NCchamp"]
[Result "1-0"]
[WhiteElo "2630"]
[BlackElo "2310"]
[TimeControl "180+1"]
[EndTime "8:07:42 PDT"]
[Termination "Hope_6 won on time"]

1. e4 {[%clk 0:02:58.1]} 1... c6 {[%clk 0:02:58.4]} 2. Nc3 {[%clk 0:02:57.7]}
2... d5 {[%clk 0:02:59.3]} 3. Qf3 {[%clk 0:02:57.3]} 3... dxe4 {[%clk
0:02:57.4]} 4. Nxe4 {[%clk 0:02:56.2]} 4... Nf6 {[%clk 0:02:56.9]} 5. Bc4 {[%clk
0:02:55.3]} 5... Qd4 {[%clk 0:02:12.6]} 6. Nxf6+ {[%clk 0:02:24]} 6... exf6
{[%clk 0:02:09]} 7. d3 {[%clk 0:02:22.2]} 7... Bg4 {[%clk 0:02:01.1]} 8. Qe3+
{[%clk 0:02:16.7]} 8... Qxe3+ {[%clk 0:01:59.9]} 9. Bxe3 {[%clk 0:02:17.6]} 9...
Bd6 {[%clk 0:01:55.5]} 10. Ne2 {[%clk 0:02:14.9]} 10... Nd7 {[%clk 0:01:52.9]}
11. Nc3 {[%clk 0:02:10.8]} 11... Bb4 {[%clk 0:01:49.5]} 12. f3 {[%clk
0:02:06.4]} 12... Bh5 {[%clk 0:01:44.4]} 13. Kf2 {[%clk 0:02:04.6]} 13... O-O
{[%clk 0:01:44.1]} 14. Rhe1 {[%clk 0:01:59.7]} 14... Rfe8 {[%clk 0:01:43.3]} 15.
a3 {[%clk 0:01:52.9]} 15... Bc5 {[%clk 0:01:36.6]} 16. Bxc5 {[%clk 0:01:44.8]}
16... Nxc5 {[%clk 0:01:37.5]} 17. Ne4 {[%clk 0:01:44.6]} 17... Nxe4+ {[%clk
0:01:31.7]} 18. Rxe4 {[%clk 0:01:43.9]} 18... Bg6 {[%clk 0:01:29.8]} 19. Rxe8+
{[%clk 0:01:41.4]} 19... Rxe8 {[%clk 0:01:30.7]} 20. g4 {[%clk 0:01:39.1]} 20...
f5 {[%clk 0:01:24.5]} 21. g5 {[%clk 0:01:33.6]} 21... f4 {[%clk 0:01:12.6]} 22.
Re1 {[%clk 0:01:24.6]} 22... Rxe1 {[%clk 0:01:07.7]} 23. Kxe1 {[%clk 0:01:23.9]}
23... Kf8 {[%clk 0:01:05]} 24. Kd2 {[%clk 0:01:21.4]} 24... Ke7 {[%clk
0:01:04.1]} 25. d4 {[%clk 0:01:21]} 25... f6 {[%clk 0:01:01.3]} 26. gxf6+ {[%clk
0:01:13.1]} 26... Kxf6 {[%clk 0:01:00.4]} 27. Bd3 {[%clk 0:01:11]} 27... Bf5
{[%clk 0:00:42.4]} 28. c4 {[%clk 0:01:09.8]} 28... g5 {[%clk 0:00:40.4]} 29. b4
{[%clk 0:01:02.4]} 29... h5 {[%clk 0:00:39.2]} 30. Ke2 {[%clk 0:00:54.4]} 30...
g4 {[%clk 0:00:38.2]} 31. Bxf5 {[%clk 0:00:52.3]} 31... Kxf5 {[%clk 0:00:38.4]}
32. h4 {[%clk 0:00:45.3]} 32... b5 {[%clk 0:00:23]} 33. fxg4+ {[%clk 0:00:27]}
33... hxg4 {[%clk 0:00:23]} 34. d5 {[%clk 0:00:27.1]} 34... bxc4 {[%clk
0:00:20.9]} 35. dxc6 {[%clk 0:00:27]} 35... Ke6 {[%clk 0:00:21.1]} 36. h5 {[%clk
0:00:26.6]} 36... c3 {[%clk 0:00:20]} 37. c7 {[%clk 0:00:24.7]} 37... Kd7 {[%clk
0:00:19.9]} 38. h6 {[%clk 0:00:25]} 38... c2 {[%clk 0:00:19.9]} 39. Kd2 {[%clk
0:00:25]} 39... g3 {[%clk 0:00:14.7]} 40. h7 {[%clk 0:00:24.5]} 40... g2 {[%clk
0:00:14.5]} 41. c8=Q+ {[%clk 0:00:24.5]} 41... Kxc8 {[%clk 0:00:14.3]} 42. h8=Q+
{[%clk 0:00:24.6]} 42... Kd7 {[%clk 0:00:15.2]} 43. Qg7+ {[%clk 0:00:24.7]} 1-0

[Event "Early-Titled-Tuesday-Blitz-May-14-2024"]
[Site "Chess.com"]
[Date "2024.05.14"]
[Round "1"]
[White "penguingm1"]
[Black "RedFirePanda"]
[Result "1-0"]
[WhiteElo "2820"]
[BlackElo "2471"]
[TimeControl "180+1"]
[EndTime "8:07:43 PDT"]
[Termination "penguingm1 won on time"]

1. d4 {[%clk 0:02:58.1]} 1... d5 {[%clk 0:02:58.5]} 2. Bf4 {[%clk 0:02:57.3]}
2... Nf6 {[%clk 0:02:55.6]} 3. e3 {[%clk 0:02:57]} 3... c6 {[%clk 0:02:55.6]} 4.
c4 {[%clk 0:02:56.9]} 4... Bf5 {[%clk 0:02:52.7]} 5. Nc3 {[%clk 0:02:56.3]} 5...
e6 {[%clk 0:02:52.3]} 6. Qb3 {[%clk 0:02:56.3]} 6... Qb6 {[%clk 0:02:48.6]} 7.
c5 {[%clk 0:02:56.2]} 7... Qxb3 {[%clk 0:02:46.1]} 8. axb3 {[%clk 0:02:57.1]}
8... Nbd7 {[%clk 0:02:46]} 9. b4 {[%clk 0:02:57.1]} 9... Be7 {[%clk 0:02:42.4]}
10. b5 {[%clk 0:02:55.7]} 10... O-O {[%clk 0:02:42.1]} 11. bxc6 {[%clk
0:02:55.3]} 11... bxc6 {[%clk 0:02:43]} 12. Ba6 {[%clk 0:02:55.1]} 12... e5
{[%clk 0:02:29.7]} 13. Bg3 {[%clk 0:01:26.1]} 13... Rab8 {[%clk 0:02:11.5]} 14.
Ra2 {[%clk 0:01:25.8]} 14... Nh5 {[%clk 0:02:05.4]} 15. Nf3 {[%clk 0:01:22.6]}
15... Nxg3 {[%clk 0:02:03.5]} 16. hxg3 {[%clk 0:01:23.5]} 16... Bf6 {[%clk
0:01:58.7]} 17. dxe5 {[%clk 0:01:07.4]} 17... Nxe5 {[%clk 0:01:54.5]} 18. Nd4
{[%clk 0:01:07.4]} 18... Bd7 {[%clk 0:01:48.6]} 19. Be2 {[%clk 0:01:04.6]} 19...
Rb7 {[%clk 0:01:45.4]} 20. O-O {[%clk 0:01:04.3]} 20... Be7 {[%clk 0:01:29]} 21.
Na4 {[%clk 0:00:59.4]} 21... Rc8 {[%clk 0:01:20.2]} 22. Rc1 {[%clk 0:00:57.7]}
22... Rcb8 {[%clk 0:01:00.6]} 23. b3 {[%clk 0:00:55.5]} 23... Ng6 {[%clk
0:00:53.2]} 24. Ba6 {[%clk 0:00:41.9]} 24... Rc7 {[%clk 0:00:45.8]} 25. Nb2
{[%clk 0:00:40.8]} 25... Bf6 {[%clk 0:00:42.9]} 26. Ra3 {[%clk 0:00:40.3]} 26...
Ne7 {[%clk 0:00:37.2]} 27. Nd3 {[%clk 0:00:38.8]} 27... Nf5 {[%clk 0:00:36.7]}
28. Ne2 {[%clk 0:00:35.9]} 28... h5 {[%clk 0:00:26.1]} 29. b4 {[%clk 0:00:30.9]}
29... g6 {[%clk 0:00:25.3]} 30. Rb3 {[%clk 0:00:26.6]} 30... Bc8 {[%clk
0:00:24.5]} 31. Bxc8 {[%clk 0:00:24.8]} 31... Rcxc8 {[%clk 0:00:25.4]} 32. Ra3
{[%clk 0:00:24.5]} 32... Rc7 {[%clk 0:00:25.6]} 33. Ra6 {[%clk 0:00:24.5]} 33...
Rb5 {[%clk 0:00:17.7]} 34. Rc2 {[%clk 0:00:24.7]} 34... d4 {[%clk 0:00:15.5]}
35. e4 {[%clk 0:00:24.8]} 35... Ne7 {[%clk 0:00:12.9]} 36. e5 {[%clk 0:00:22.5]}
36... Bg5 {[%clk 0:00:09.8]} 37. Nxd4 {[%clk 0:00:22.4]} 37... Rbb7 {[%clk
0:00:10.3]} 38. Rca2 {[%clk 0:00:18.9]} 38... Nd5 {[%clk 0:00:10.5]} 39. Nxc6
{[%clk 0:00:18.9]} 39... Nc3 {[%clk 0:00:08.1]} 40. Rc2 {[%clk 0:00:18.6]} 40...
Nd5 {[%clk 0:00:07.4]} 41. f4 {[%clk 0:00:18.5]} 41... Bh6 {[%clk 0:00:06.1]}
42. Rc4 {[%clk 0:00:18.7]} 42... Bf8 {[%clk 0:00:05.4]} 43. Rd4 {[%clk
0:00:18.7]} 43... Ne7 {[%clk 0:00:05.7]} 44. Nd8 {[%clk 0:00:17.7]} 44... Rb8
{[%clk 0:00:03.8]} 45. e6 {[%clk 0:00:18.2]} 45... f6 {[%clk 0:00:03.1]} 46. Nf7
{[%clk 0:00:15.3]} 46... Nc6 {[%clk 0:00:03]} 47. Rd7 {[%clk 0:00:15.4]} 47...
Rbb7 {[%clk 0:00:02.6]} 48. Rxc6 {[%clk 0:00:13.9]} 48... Rxc6 {[%clk
0:00:02.6]} 49. Rxb7 {[%clk 0:00:14]} 1-0

[Event "Early-Titled-Tuesday-Blitz-May-14-2024"]
[Site "Chess.com"]
[Date "2024.05.14"]
[Round "1"]
[White "Polish_fighter3000"]
[Black "ATM622"]
[Result "1-0"]
[WhiteElo "3099"]
[BlackElo "2545"]
[TimeControl "180+1"]
[EndTime "8:07:45 PDT"]
[Termination "Polish_fighter3000 won by resignation"]

1. e4 {[%clk 0:02:54.2]} 1... c6 {[%clk 0:02:59.6]} 2. d3 {[%clk 0:02:42.5]}
2... d5 {[%clk 0:02:59.7]} 3. Nd2 {[%clk 0:02:43.4]} 3... e5 {[%clk 0:02:59.2]}
4. Ngf3 {[%clk 0:02:43.1]} 4... Nd7 {[%clk 0:02:58.5]} 5. g3 {[%clk 0:02:35]}
5... Ngf6 {[%clk 0:02:58.1]} 6. Bg2 {[%clk 0:02:35]} 6... Be7 {[%clk 0:02:57.7]}
7. O-O {[%clk 0:02:33.8]} 7... O-O {[%clk 0:02:57.7]} 8. exd5 {[%clk 0:02:28.8]}
8... cxd5 {[%clk 0:02:57.8]} 9. Re1 {[%clk 0:02:29.7]} 9... Qc7 {[%clk
0:02:53.9]} 10. c4 {[%clk 0:02:25.2]} 10... d4 {[%clk 0:02:52.2]} 11. Nxd4
{[%clk 0:02:24.2]} 11... Nc5 {[%clk 0:02:39.5]} 12. Nb5 {[%clk 0:02:23.3]} 12...
Qd8 {[%clk 0:02:38.3]} 13. Nb3 {[%clk 0:01:19.7]} 13... Nxd3 {[%clk 0:02:37.6]}
14. Re3 {[%clk 0:01:19.6]} 14... e4 {[%clk 0:02:28.7]} 15. Bxe4 {[%clk
0:00:51.9]} 15... Nxe4 {[%clk 0:02:23]} 16. Rxd3 {[%clk 0:00:51.4]} 16... Qb6
{[%clk 0:02:20.7]} 17. Be3 {[%clk 0:00:51.1]} 17... Qg6 {[%clk 0:02:18.8]} 18.
Nc7 {[%clk 0:00:49.4]} 18... Rb8 {[%clk 0:02:11.6]} 19. Bxa7 {[%clk 0:00:49]}
19... Ng5 {[%clk 0:02:03]} 20. Nd5 {[%clk 0:00:43.3]} 20... Nh3+ {[%clk
0:01:57.7]} 21. Kg2 {[%clk 0:00:36.2]} 21... Bg5 {[%clk 0:01:25.3]} 22. Bxb8
{[%clk 0:00:29.2]} 22... Bf5 {[%clk 0:01:25.6]} 23. Rf3 {[%clk 0:00:19]} 23...
Rxb8 {[%clk 0:01:12.3]} 24. Rxf5 {[%clk 0:00:19.1]} 24... Qxf5 {[%clk
0:01:12.5]} 25. Qf3 {[%clk 0:00:19.4]} 25... Qxf3+ {[%clk 0:00:43.2]} 26. Kxf3
{[%clk 0:00:20.3]} 26... Bd8 {[%clk 0:00:41.6]} 27. Re1 {[%clk 0:00:14.6]} 27...
Ng5+ {[%clk 0:00:41.9]} 28. Kg2 {[%clk 0:00:15]} 28... Ne6 {[%clk 0:00:42.3]}
29. Nd4 {[%clk 0:00:15.3]} 29... Ba5 {[%clk 0:00:38.4]} 30. Re4 {[%clk
0:00:11.6]} 30... Nxd4 {[%clk 0:00:35]} 31. Rxd4 {[%clk 0:00:12.5]} 31... Kf8
{[%clk 0:00:31.9]} 32. b4 {[%clk 0:00:11.8]} 32... Bd8 {[%clk 0:00:32]} 33. a4
{[%clk 0:00:12]} 33... f5 {[%clk 0:00:29.4]} 34. a5 {[%clk 0:00:11.9]} 34... Kf7
{[%clk 0:00:29.4]} 35. h4 {[%clk 0:00:09.5]} 35... Ke6 {[%clk 0:00:29.7]} 36.
Kf3 {[%clk 0:00:09.5]} 36... Ke5 {[%clk 0:00:29.2]} 37. Rd3 {[%clk 0:00:09.9]}
37... Rc8 {[%clk 0:00:27.1]} 38. Ne3 {[%clk 0:00:09.7]} 38... g6 {[%clk
0:00:25.9]} 39. Rd7 {[%clk 0:00:09.1]} 39... h6 {[%clk 0:00:10.6]} 40. Rxb7
{[%clk 0:00:08]} 40... Kd4 {[%clk 0:00:10.8]} 41. c5 {[%clk 0:00:07.8]} 41...
Kc3 {[%clk 0:00:05.6]} 42. a6 {[%clk 0:00:07.9]} 42... g5 {[%clk 0:00:02.8]} 43.
a7 {[%clk 0:00:07.6]} 43... g4+ {[%clk 0:00:02.9]} 44. Kf4 {[%clk 0:00:07.5]}
44... Ra8 {[%clk 0:00:01.7]} 45. Kxf5 {[%clk 0:00:07.8]} 45... Kb3 {[%clk
0:00:01.5]} 46. b5 {[%clk 0:00:07.6]} 46... Bc7 {[%clk 0:00:01.3]} 1-0

[Event "Early-Titled-Tuesday-Blitz-May-14-2024"]
[Site "Chess.com"]
[Date "2024.05.14"]
[Round "1"]
[White "HajiyevKanan"]
[Black "Alexander_Donchenko"]
[Result "0-1"]
[WhiteElo "2503"]
[BlackElo "2870"]
[TimeControl "180+1"]
[EndTime "8:07:46 PDT"]
[Termination "Alexander_Donchenko won by checkmate"]

1. d4 {[%clk 0:02:57.1]} 1... Nf6 {[%clk 0:02:59.7]} 2. Nf3 {[%clk 0:02:55.4]}
2... d5 {[%clk 0:02:59.7]} 3. g3 {[%clk 0:02:56.3]} 3... Bf5 {[%clk 0:02:59.3]}
4. Bg2 {[%clk 0:02:57.2]} 4... h6 {[%clk 0:02:59.6]} 5. O-O {[%clk 0:02:57.7]}
5... e6 {[%clk 0:03:00.1]} 6. c4 {[%clk 0:02:57.8]} 6... c6 {[%clk 0:03:00.5]}
7. Nc3 {[%clk 0:02:55.9]} 7... Be7 {[%clk 0:03:00.6]} 8. b3 {[%clk 0:02:53.1]}
8... O-O {[%clk 0:02:59.9]} 9. Bb2 {[%clk 0:02:52.5]} 9... Nbd7 {[%clk
0:03:00.3]} 10. e3 {[%clk 0:02:49.7]} 10... a5 {[%clk 0:03:00.2]} 11. Qd2 {[%clk
0:02:47.9]} 11... Ne4 {[%clk 0:02:59.3]} 12. Nxe4 {[%clk 0:02:48]} 12... Bxe4
{[%clk 0:03:00.2]} 13. Rfd1 {[%clk 0:02:46.6]} 13... a4 {[%clk 0:02:59.1]} 14.
Bc3 {[%clk 0:02:45.1]} 14... Qb6 {[%clk 0:02:57.4]} 15. c5 {[%clk 0:02:42]}
15... Qc7 {[%clk 0:02:57.2]} 16. b4 {[%clk 0:02:34.5]} 16... Rfe8 {[%clk
0:02:51.4]} 17. a3 {[%clk 0:02:33.4]} 17... Bf6 {[%clk 0:02:51.2]} 18. Qb2
{[%clk 0:02:33.7]} 18... b6 {[%clk 0:02:44.5]} 19. Rac1 {[%clk 0:02:30.3]} 19...
Rab8 {[%clk 0:02:44.4]} 20. Qa1 {[%clk 0:02:27.8]} 20... Re7 {[%clk 0:02:41.2]}
21. Ne1 {[%clk 0:02:16.9]} 21... Bxg2 {[%clk 0:02:40.6]} 22. Nxg2 {[%clk
0:02:17.8]} 22... bxc5 {[%clk 0:02:29.9]} 23. dxc5 {[%clk 0:02:10.8]} 23... e5
{[%clk 0:02:22.9]} 24. Ne1 {[%clk 0:02:07.4]} 24... e4 {[%clk 0:02:20.6]} 25.
Bxf6 {[%clk 0:02:03.8]} 25... Nxf6 {[%clk 0:02:21.5]} 26. Qb2 {[%clk 0:01:55.7]}
26... Qd7 {[%clk 0:02:20.1]} 27. Kg2 {[%clk 0:01:53.3]} 27... h5 {[%clk
0:02:17.9]} 28. h4 {[%clk 0:01:49.7]} 28... Ng4 {[%clk 0:02:16.1]} 29. Qc2
{[%clk 0:01:47.4]} 29... Qf5 {[%clk 0:02:11.3]} 30. Rd2 {[%clk 0:01:42.2]} 30...
Re6 {[%clk 0:02:09.9]} 31. Qxa4 {[%clk 0:01:38.3]} 31... Rf6 {[%clk 0:02:09.2]}
32. Qc2 {[%clk 0:01:31.8]} 32... g5 {[%clk 0:02:05.2]} 33. hxg5 {[%clk
0:01:15.9]} 33... Qxg5 {[%clk 0:02:06.1]} 34. Qb2 {[%clk 0:00:30.4]} 34... h4
{[%clk 0:02:04.2]} 35. Nc2 {[%clk 0:00:24]} 35... Nxf2 {[%clk 0:01:55.3]} 36.
Qxf6 {[%clk 0:00:16.5]} 36... Qxf6 {[%clk 0:01:53.6]} 37. Rxf2 {[%clk
0:00:16.8]} 37... Qg5 {[%clk 0:01:54.2]} 38. Rg1 {[%clk 0:00:14.4]} 38... hxg3
{[%clk 0:01:51.2]} 39. Rf4 {[%clk 0:00:14.6]} 39... Kg7 {[%clk 0:01:43.3]} 40.
Rh1 {[%clk 0:00:14.4]} 40... f5 {[%clk 0:01:37.9]} 41. Rh3 {[%clk 0:00:14.3]}
41... Kf7 {[%clk 0:01:29.4]} 42. Rxg3 {[%clk 0:00:14.4]} 42... Qh5 {[%clk
0:01:28.4]} 43. Nd4 {[%clk 0:00:15.1]} 43... Kf6 {[%clk 0:00:57]} 44. Rxf5+
{[%clk 0:00:14.4]} 44... Qxf5 {[%clk 0:00:57.9]} 45. Nxf5 {[%clk 0:00:15.1]}
45... Kxf5 {[%clk 0:00:58.8]} 46. Rg7 {[%clk 0:00:12.1]} 46... Ra8 {[%clk
0:00:57.4]} 47. Rc7 {[%clk 0:00:12.3]} 47... Rxa3 {[%clk 0:00:57.5]} 48. Rxc6
{[%clk 0:00:12.5]} 48... Rxe3 {[%clk 0:00:57.8]} 49. b5 {[%clk 0:00:12.4]} 49...
Re2+ {[%clk 0:00:46.2]} 50. Kf1 {[%clk 0:00:12.1]} 50... Rb2 {[%clk 0:00:46.8]}
51. b6 {[%clk 0:00:12.8]} 51... d4 {[%clk 0:00:45.4]} 52. Rd6 {[%clk 0:00:05.2]}
52... d3 {[%clk 0:00:44]} 53. c6 {[%clk 0:00:04.8]} 53... Rxb6 {[%clk
0:00:43.3]} 54. Rd5+ {[%clk 0:00:03.6]} 54... Kf4 {[%clk 0:00:38.3]} 55. Rc5
{[%clk 0:00:03]} 55... Rb1+ {[%clk 0:00:35.8]} 56. Kg2 {[%clk 0:00:03.5]} 56...
d2 {[%clk 0:00:36.2]} 57. c7 {[%clk 0:00:03.3]} 57... d1=Q {[%clk 0:00:36.6]}
58. Rf5+ {[%clk 0:00:02.3]} 58... Ke3 {[%clk 0:00:37]} 59. c8=Q {[%clk
0:00:02.3]} 59... Qh1+ {[%clk 0:00:36.2]} 60. Kg3 {[%clk 0:00:02.1]} 60... Rg1#
{[%clk 0:00:36.7]} 0-1